Cogmind - Beta 13 @@@ ROGUE MODE // 2024.06.05 @ 21:44:39 Player: Castelle Result: Destroyed by G-47 Trooper with Particle Gun Performance ------------- Evolutions (2) 1000 Regions Visited (6) 1200 Robots Destroyed (42) 210 Value Destroyed (1290) 1290 Prototype IDs (1) 20 Alien Tech Used (0) 0 Bonus (0) 0 TOTAL SCORE: 3720 Bonus ------- None Cogmind --------- Core Integrity 0/550 Matter 240/300 Energy 146/150 System Corruption 0% Temperature Warm (100) Movement Walking (120) Location -8/Materials Parts ------- > --- POWER (1) -------- Micro Nuclear Core > --- PROPULSION (4) --- Improved Carbon-fiber Leg > --- UTILITY (4) ------ Terrain Scan Processor System Shield > --- WEAPON (2) ------- Small Laser > --- INVENTORY (5) ---- Improved Ion Engine Light Nuclear Core Light Nuclear Core Peak State ------------ > --- POWER ------------ Micro Nuclear Core > --- PROPULSION ------- Improved Carbon-fiber Leg Improved Carbon-fiber Leg Improved Carbon-fiber Leg Improved Carbon-fiber Leg > --- UTILITY ---------- Large Storage Unit System Shield > --- WEAPON ----------- Heavy Assault Rifle Shotgun > --- INVENTORY -------- Improved Ion Engine Light Nuclear Core Light Nuclear Core Heat Sink Heat Sink Sensor Array Small Laser Particle Gun [Rating: 29] Favorites ----------- Power Ion Engine Engine Ion Engine Power Core Light Nuclear Core Propulsion Light Treads Treads Light Treads Leg Aluminum Leg Utility Large Storage Unit Device Sensor Array Storage Large Storage Unit Processor Terrain Scan Processor Hackware System Shield Protection Medium Armor Plating Weapon Medium Laser Energy Gun Medium Laser Ballistic Gun Assault Rifle Special Melee Weapon Improved Datajack Build | -11 -10 -9 -9 -9 -8 -8 ------- Run | Yrd Mat Mat Min Exi Min Mat Slots Evolved 4 | . . 2 . . . 2 Power . | . . . . . . . Propulsion 2 | . . 1 . . . 1 Utility 2 | . . 1 . . . 1 Weapon . | . . . . . . . Parts Attached 50 | 6 8 14 1 . 1 20 Power 8 | 1 2 2 1 . . 2 Engine 6 | 1 2 2 1 . . . Core 2 | . . . . . . 2 Reactor . | . . . . . . . Propulsion 10 | 2 . 3 . . . 5 Treads 5 | 2 . 2 . . . 1 Leg 5 | . . 1 . . . 4 Wheel . | . . . . . . . Hover . | . . . . . . . Flight . | . . . . . . . Utility 13 | 1 2 4 . . . 6 Device 6 | . 1 2 . . . 3 Storage 4 | 1 1 2 . . . . Processor 1 | . . . . . . 1 Hackware 1 | . . . . . . 1 Protection 1 | . . . . . . 1 Artifact . | . . . . . . . Weapon 19 | 2 4 5 . . 1 7 Energy Gun 6 | 2 . 2 . . . 2 Energy Cannon . | . . . . . . . Ballistic Gun 11 | . 4 3 . . 1 3 Ballistic Cannon . | . . . . . . . Launcher . | . . . . . . . Special Weapon . | . . . . . . . Impact Weapon . | . . . . . . . Slashing Weapon . | . . . . . . . Piercing Weapon . | . . . . . . . Special Melee Weapon 2 | . . . . . . 2 Unidentified Prototypes 1 | . 1 . . . . . Parts Lost 29 | . 1 11 . . . 17 Power 3 | . . 2 . . . 1 Propulsion 8 | . . 3 . . . 5 Utility 7 | . . 1 . . . 6 Weapon 11 | . 1 5 . . . 5 Highest Loss Streak 10 | . 1 4 . . . 10 To Critical Strikes . | . . . . . . . Average Slot Usage (%) 74 | . 87 67 66 66 69 71 Engine 9 | . 14 10 11 11 11 2 Core 1 | . . . . . . 6 Treads 14 | . 28 5 11 11 11 11 Leg 2 | . . 4 . . . 4 Device 11 | . 2 13 22 22 22 14 Storage 11 | . 14 11 11 11 11 8 Protection 1 | . . . . . . 6 Energy Gun 9 | . 20 4 11 11 11 2 Ballistic Gun 10 | . 7 16 . . 3 9 Naked Turns . | . . . . . . . Heaviest Build 40 | 12 31 32 28 28 31 40 Greatest Support 72 | 40 40 40 23 23 23 72 Greatest Overweight (x) 10 | 3 . 10 1 1 1 6 Average Overweight (x) . | . . 1 1 1 1 . Largest Inventory Capacity 25 | 8 15 25 15 15 15 15 Average Capacity 12 | 7 14 15 15 15 15 14 Most Carried 11 | 2 8 8 3 3 4 11 Average Carried 3 | 1 3 4 3 3 3 6 Final Capacity 15 | 8 15 15 15 15 15 5 Final Carried 7 | 2 7 4 3 3 4 3 Class Distribution -------------------- 100% | Mutant Dominant Class ---------------- Mutant | -10/Materials Mutant | -9/Materials Mutant | -9/Mines Mutant | -9/Exiles Mutant | -8/Mines Mutant | -8/Materials Resources | -11 -10 -9 -9 -9 -8 -8 ----------- Run | Yrd Mat Mat Min Exi Min Mat Matter Collected 1383 | 191 353 472 . . 39 328 Remotely 396 | . 218 178 . . . . Salvage Created 1494 | . 358 655 . . . 481 Parts 86 | . 23 32 . . . 31 Haulers Intercepted . | . . . . . . . Recyclers Shooed 1 | . . 1 . . . . Parts Field Recycled . | . . . . . . . Retrieved Matter . | . . . . . . . Parts Self-Destructed . | . . . . . . . Prevented . | . . . . . . . Kills | -11 -10 -9 -9 -9 -8 -8 ------- Run | Yrd Mat Mat Min Exi Min Mat Combat Hostiles Destroyed 35 | . 10 15 . . . 10 Guns 35 | . 10 15 . . . 10 Classes Destroyed 11 | . 4 4 . . . 3 Worker 2 | . 1 1 . . . . Builder 1 | . . . . . . 1 Tunneler 1 | . . 1 . . . . Recycler 1 | . . 1 . . . . Operator 1 | . . . . . . 1 Watcher 1 | . 1 . . . . . Swarmer 6 | . 3 3 . . . . Grunt 24 | . 7 10 . . . 7 Brawler 1 | . . 1 . . . . Sentry 3 | . . 1 . . . 2 Heavy 1 | . . . . . . 1 Best Kill Streak 5 | . 4 5 . . . 5 Combat Bots Only 5 | . 4 3 . . . 5 Max Kills in Single Turn 2 | . 2 2 . . . 1 Gunslinging 1 | . 1 1 . . . . Exploded . | . . . . . . . Melee . | . . . . . . . Uniques/NPCs Destroyed . | . . . . . . . Combat | -11 -10 -9 -9 -9 -8 -8 -------- Run | Yrd Mat Mat Min Exi Min Mat Hostile Shots Fired 354 | . 91 148 . . . 115 Missed 94 | . 21 45 . . . 28 Damage Taken 4159 | . 850 1261 . . . 2048 Core 1054 | . 228 265 . . . 561 Absorbed by Shields . | . . . . . . . Core Remaining (%) 47 | 100 8 . . . 33 . Volleys Fired 194 | . 42 84 . . . 68 Largest 2 | . 2 2 . . . 2 Hottest 105 | . 90 63 . . . 105 Shots Fired 345 | . 84 168 . . . 93 Gun 345 | . 84 168 . . . 93 Cannon . | . . . . . . . Launcher . | . . . . . . . Special . | . . . . . . . Kinetic 230 | . 35 135 . . . 60 Thermal 102 | . 36 33 . . . 33 Explosive . | . . . . . . . Electromagnetic 13 | . 13 . . . . . Robot Hit Streak 22 | . 13 18 . . . 22 Robot Miss Streak 6 | . 6 5 . . . 3 Penetration Max . | . . . . . . . Secondary Targets 8 | . 4 3 . . . 1 Max Gunslinging Chain 1 | . 1 1 . . . 1 Shots Hit Robots 245 | . 49 113 . . . 83 Core Hits 83 | . 19 29 . . . 35 Critical Kills . | . . . . . . . Critical Parts Destroyed . | . . . . . . . Critical Strikes 2 | . 2 . . . . . Burn 1 | . 1 . . . . . Corrupt 1 | . 1 . . . . . Melee Attacks 9 | . . . . . . 9 Impact . | . . . . . . . Slashing . | . . . . . . . Piercing . | . . . . . . . Sneak Attacks 3 | . . . . . . 3 Combat Hostiles . | . . . . . . . Follow-up Attacks . | . . . . . . . Damage Inflicted 3552 | . 763 1538 . . . 1251 Guns 3527 | . 741 1535 . . . 1251 Cannons . | . . . . . . . Explosions . | . . . . . . . Melee . | . . . . . . . Ramming 25 | . 22 3 . . . . Kinetic 2467 | . 309 1299 . . . 859 Thermal 904 | . 276 236 . . . 392 Explosive . | . . . . . . . Electromagnetic 156 | . 156 . . . . . Impact . | . . . . . . . Slashing . | . . . . . . . Piercing . | . . . . . . . Highest Corruption 2 | . . 2 2 2 2 . Average Corruption 2 | . . 2 2 2 2 . Corruption Purged . | . . . . . . . Corruption Blocked . | . . . . . . . Effects 12 | . . 7 2 3 . . Message Errors 3 | . . 1 2 . . . Matter Fused 2 | . . 1 . 1 . . Heat Flow Errors 1 | . . . . 1 . . Data Loss (minor) 3 | . . 2 . 1 . . Misfires 3 | . . 3 . . . . Overload Shots . | . . . . . . . Overflow Damage . | . . . . . . . Projectiles . | . . . . . . . Explosions . | . . . . . . . Melee . | . . . . . . . Knockbacks 1 | . . 1 . . . . Impact 1 | . . 1 . . . . Kinetic . | . . . . . . . Secondary . | . . . . . . . Self-Inflicted Damage . | . . . . . . . Shots . | . . . . . . . Rammed 4 | . 3 1 . . . . Targets Rammed 5 | . 4 1 . . . . Kicked . | . . . . . . . Crushed 1 | . 1 . . . . . Highest Temperature 420 | . 420 48 . 94 . 153 Average Temperature 122 | . 185 14 . 48 . 55 Received Heat Transfer 1515 | . 429 501 . . . 585 Effects 7 | . 7 . . . . . Shutdowns 1 | . 1 . . . . . Energy Bleed 1 | . 1 . . . . . Interference 1 | . 1 . . . . . Matter Decay 3 | . 3 . . . . . Damage (minor) 1 | . 1 . . . . . Siege Activations . | . . . . . . . Robots Corrupted . | . . . . . . . Combat Hostiles . | . . . . . . . Parts Fried . | . . . . . . . Impact Corruptions . | . . . . . . . Robots Melted . | . . . . . . . Combat Hostiles . | . . . . . . . Parts Melted 2 | . . 2 . . . . Heat Transferred 2378 | . 888 550 . . . 940 Parts Sabotaged . | . . . . . . . Parts Stolen . | . . . . . . . Parts Stripped . | . . . . . . . Power Chain Reactions . | . . . . . . . Alert | -11 -10 -9 -9 -9 -8 -8 ------- Run | Yrd Mat Mat Min Exi Min Mat Peak Influence 246 | . 246 186 19 . . 150 Initial 40 | . . 40 19 . . . Average 43 | . 56 76 19 . . 54 Maximum Alert Level 1 | . 1 . . . . . Low Security (%) 97 | 100 90 100 100 . 100 100 Level 1 2 | . 9 . . . . . Level 2 . | . . . . . . . Level 3 . | . . . . . . . Level 4 . | . . . . . . . Level 5 . | . . . . . . . High Security . | . . . . . . . Max Security . | . . . . . . . Squads Dispatched 6 | . 2 1 . . . 3 Investigation 1 | . . 1 . . . . Extermination . | . . . . . . . Reinforcement 5 | . 2 . . . . 3 Assault . | . . . . . . . Garrison . | . . . . . . . Intercept . | . . . . . . . Searches Triggered . | . . . . . . . Construction Impeded . | . . . . . . . Haulers Reinforced . | . . . . . . . Active Scanning Responses . | . . . . . . . Cargo Convoy Interrupts . | . . . . . . . Stealth | -11 -10 -9 -9 -9 -8 -8 --------- Run | Yrd Mat Mat Min Exi Min Mat Distress Signals 1 | . . 1 . . . . Communications Jammed . | . . . . . . . Distress Signals . | . . . . . . . Times Spotted 54 | . 14 23 . . . 17 Peak Tracking Total 5 | . 5 3 . . . 5 Tactical Retreats 3 | . 1 . . . . 2 Traps | -11 -10 -9 -9 -9 -8 -8 ------- Run | Yrd Mat Mat Min Exi Min Mat Traps Triggered . | . . . . . . . Indirectly . | . . . . . . . Trap Hack Attempts . | . . . . . . . Triggered . | . . . . . . . Disarmed . | . . . . . . . Reprogrammed . | . . . . . . . Reused . | . . . . . . . Traps Extracted . | . . . . . . . Installed . | . . . . . . . Triggered . | . . . . . . . Machines | -11 -10 -9 -9 -9 -8 -8 ---------- Run | Yrd Mat Mat Min Exi Min Mat Machines Disabled . | . . . . . . . Max in Single Turn . | . . . . . . . Machines Repaired . | . . . . . . . Machines Dismantled . | . . . . . . . Machines Sabotaged . | . . . . . . . Overloaded Fab Kills . | . . . . . . . Hacking | -11 -10 -9 -9 -9 -8 -8 --------- Run | Yrd Mat Mat Min Exi Min Mat Machines Accessed 5 | . 1 2 . . . 2 Terminals 3 | . . 1 . . . 2 Fabricators . | . . . . . . . Repair Stations 1 | . . 1 . . . . Recycling Units 1 | . 1 . . . . . Scanalyzers . | . . . . . . . Garrison Access . | . . . . . . . Total Hacks 10 | . 2 5 . . . 3 Successful 3 | . . 1 . . . 2 Failed 7 | . 2 4 . . . 1 Catastrophic 1 | . 1 . . . . . Database Lockouts . | . . . . . . . Manual . | . . . . . . . Terminals 5 | . . 2 . . . 3 Fabricators . | . . . . . . . Repair Stations 3 | . . 3 . . . . Recycling Units 2 | . 2 . . . . . Scanalyzers . | . . . . . . . Garrison Access . | . . . . . . . Terminal Hacks 3 | . . 1 . . . 2 Emergency Access Points 2 | . . 1 . . . 1 Dispatch Records 1 | . . . . . . 1 Fabricator Hacks . | . . . . . . . Repair Station Hacks . | . . . . . . . Recycling Unit Hacks . | . . . . . . . Scanalyzer . | . . . . . . . Garrison Access Hacks . | . . . . . . . Unauthorized Hacks . | . . . . . . . Terminals . | . . . . . . . Fabricators . | . . . . . . . Repair Stations . | . . . . . . . Recycling Units . | . . . . . . . Scanalyzers . | . . . . . . . Garrison Access . | . . . . . . . Data Cores Recovered . | . . . . . . . Used . | . . . . . . . Hacking Detections 2 | . . 2 . . . . Full Trace Events 1 | . . 1 . . . . Feedback Events . | . . . . . . . Feedback Blocked . | . . . . . . . Robot Schematics Acquired . | . . . . . . . Robots Built . | . . . . . . . Authchips . | . . . . . . . Time . | . . . . . . . Total Robot Build Rating . | . . . . . . . Part Schematics Acquired . | . . . . . . . Parts Built . | . . . . . . . Authchips . | . . . . . . . Time . | . . . . . . . Total Part Build Rating . | . . . . . . . Parts Repaired . | . . . . . . . Time . | . . . . . . . Parts Recycled . | . . . . . . . Recycled Matter . | . . . . . . . Retrieved Matter . | . . . . . . . Retrieved Components . | . . . . . . . Parts Scanalyzed . | . . . . . . . Part Schematics Acquired . | . . . . . . . Parts Damaged . | . . . . . . . Bothacking | -11 -10 -9 -9 -9 -8 -8 ------------ Run | Yrd Mat Mat Min Exi Min Mat Used RIF Installer . | . . . . . . . Robots Hacked 3 | . . . . . . 3 Non-combat 2 | . . . . . . 2 Combat 1 | . . . . . . 1 Robot Hacks Applied 4 | . . . . . . 4 parse_system 2 | . . . . . . 2 no_distress 1 | . . . . . . 1 find_recycling 1 | . . . . . . 1 Relay Couplers Released . | . . . . . . . Fabnet Peak Effective % . | . . . . . . . Robots Rewired . | . . . . . . . Allies Hacked . | . . . . . . . Hacks Repelled . | . . . . . . . Allies | -11 -10 -9 -9 -9 -8 -8 -------- Run | Yrd Mat Mat Min Exi Min Mat Total Allies . | . . . . . . . Largest Group . | . . . . . . . Highest-Rated Group . | . . . . . . . Highest-Rated Ally . | . . . . . . . Total Orders . | . . . . . . . Ally Attacks . | . . . . . . . Total Damage . | . . . . . . . Kills . | . . . . . . . Allies Corrupted . | . . . . . . . Allies Melted . | . . . . . . . Intel | -11 -10 -9 -9 -9 -8 -8 ------- Run | Yrd Mat Mat Min Exi Min Mat Robot Analysis Total . | . . . . . . . Derelict Logs Recovered . | . . . . . . . Drone Launches . | . . . . . . . Drone Recoveries . | . . . . . . . Exploration | -11 -10 -9 -9 -9 -8 -8 ------------- Run | Yrd Mat Mat Min Exi Min Mat Turns Passed 3893 | 1086 833 1038 76 108 94 658 Spaces Moved 1281 | 197 420 302 32 46 39 245 Core 37 | 12 . 14 . . . 11 Treads 1119 | 185 420 178 32 46 39 219 Legs 125 | . . 110 . . . 15 Wheels . | . . . . . . . Hover . | . . . . . . . Flight . | . . . . . . . Fastest Speed 50 | 50 160 160 240 240 240 120 Average Speed 194 | 157 160 253 240 240 240 186 Slowest Speed 550 | 200 160 550 240 240 240 350 Overloaded Moves . | . . . . . . . Propulsion Burnouts . | . . . . . . . Robots Hopped . | . . . . . . . Cave-ins Triggered . | . . . . . . . Exploration Rate (%) 18 | 17 47 23 10 8 10 14 Regions Visited 6 Branch Regions 3 Pre-discovered Areas . | . . . . . . . Known Exits Taken . | . . . . . . . Unknown Exits Taken 6 | 1 1 1 1 1 1 . Scrap Searched 1 | . . . . . 1 . Spaces Dug . | . . . . . . . Terrain Destroyed . | . . . . . . . Melee . | . . . . . . . Projectile . | . . . . . . . AOE . | . . . . . . . Terrain Rammed . | . . . . . . . Walls Destroyed . | . . . . . . . Machines Disabled . | . . . . . . . Actions | -11 -10 -9 -9 -9 -8 -8 --------- Run | Yrd Mat Mat Min Exi Min Mat Total 2338 | 969 495 406 32 45 40 351 Wait 775 | 765 10 . . . . . Move 1275 | 196 419 301 31 45 38 245 Hop . | . . . . . . . Pick Up 13 | 2 5 2 . . 1 3 Fast Attach 28 | 6 4 5 . . 1 12 Attach 16 | . 1 6 1 . . 8 Detach 9 | . 3 1 . . . 5 Swap 6 | . 3 3 . . . . Drop 8 | . 4 3 . . . 1 Fire 194 | . 42 84 . . . 68 Melee 9 | . . . . . . 9 Ram . | . . . . . . . Kick . | . . . . . . . Crush 5 | . 4 1 . . . . Escape Stasis . | . . . . . . . Rewire . | . . . . . . . Trap . | . . . . . . . Miscellaneous . | . . . . . . . Route ------- -11/Scrapyard -10/Materials (discovered 2 exits: *Mat x2) -9/Materials -9/Mines -9/Exiles -8/Mines -8/Materials History --------- Turn | Location | Event 19 | -11/Scrapyard | Discovered new exit (range 16) 1087 | -11/Scrapyard | Entered Materials 1088 | -10/Materials | Build established: Mutant 1498 | -10/Materials | Discovered new exit (range 12) 1765 | -10/Materials | Core integrity fell below 50% 1796 | -10/Materials | Core integrity fell below 20% 1899 | -10/Materials | Discovered new exit (range 13) 1920 | -10/Materials | Entered another Materials area 1920 | -9/Materials | Evolved 2 slots: Propulsion x1, Utility x1 2193 | -9/Materials | Core integrity fell below 50% 2221 | -9/Materials | Lost 4 parts (1p3w) 2918 | -9/Materials | Discovered new exit (range 10) 2958 | -9/Materials | Entered Mines 3017 | -9/Mines | Deemed a non-threat by the Exiles lab entrance 3019 | -9/Mines | Discovered new exit (range 5) 3034 | -9/Mines | Entered Exiles 3102 | -9/Exiles | Discovered new exit (range 15) 3142 | -9/Exiles | Entered Mines 3215 | -8/Mines | Discovered new exit (range 5) 3236 | -8/Mines | Entered Materials 3236 | -8/Materials | Evolved 2 slots: Propulsion x1, Utility x1 3774 | -8/Materials | Lost 5 parts (2n2u1w) 3778 | -8/Materials | Core integrity fell below 50% 3832 | -8/Materials | Core integrity fell below 20% 3894 | -8/Materials | Destroyed by G-47 Trooper with Particle Gun Last Messages --------------- Penetrated by Slug. U-05 Engineer builds a Wall. Imp. Carbon-fiber Leg destroyed. U-05 Engineer builds a Wall. U-05 Engineer destroyed. Acquired 7 matter. Acquired 1 matter. Hvy. Assault Rifle destroyed. Heat Sink destroyed. Acquired 8 matter. M-13 Machinist repairs H-61 Shepherd. Lrg. Storage Unit destroyed. Acquired 4 matter. Heat Sink destroyed. H-61 Shepherd destroyed. Acquired Terrain Scan Processor. Sensor Array destroyed. Particle Gun destroyed. Acquired 49 matter. Imp. Carbon-fiber Leg destroyed. Map ----- +----------------------------------------------------+ | ???????????????????????????????????# [ | | ???????????????????????????????????# **% = * | | ?????????????????????????? ????????# ! ! | | ?????????????????????????? ????????# ####### | | ????????????????????????? ?? ? ????### ###?#?#?# | | ??????????????????????????????????#??# #?? ????# | | ????????????????????????????????????## #??? ???+ | | ????????????????????????? ??????#????# #???????# | | ????????????????????????????????????## ##??????# | | ???????????????????????????? ??#????# #??????# | | ???????????????????????????????#????# T #? ????# | | ??????????????????????????? ???????# #??????# | | ???????????????????????????????####### ####????# | | ?????????????????????????????#?# # #??????## | | ???????????????????????????????# + #?????### | | ??????????????????????????""???# #!#????#??# | | ???????????????????????????????# # #???????? | | ???????????????????????????????# "T" #=#???? ????? | | ????????????????????????????"??# """ # #? ?? ???? | | ??????????????????????? ???? ??# # #?????????? | | ???????????????????????????????####### #? ??????? | | ????????????????????????????????????## #?? ??????? | | ??????????????????????????????????##?# #?????????? | | ?????????????????????#####?????###???# #?????#???? | | ?????????????????????#!! ############# ######## | | ?????????????????????#!!!@%= | | ????????????????????##%%= =* % | | ????????????????????##% *|%gg % % | | ????????????????????##=**### m #####+### | | ????????????????????## *%# # g % #??????????? | | ????????????????????######## % ##?????????? | | ???????????????????????????########## #??????????? | | ????????????????????????????????????#+#??????????? | | ???????????????????????????????????? ??????????? | | ???????????????????????????????????? ?????????? | | ???????????????????????????????????? ????????? | | ???????????????????????????????????? ?#???????? | | ???????????????????????????????????? ????????? | | ??????????????????????????????????? ????????? | | ??????????????????????????????????? ? #???????? | | ?????????????????????????????????????? #???????? | | ?????????????????????????????????????? ????????? | | ??????????????????????????????????????#??????????? | | ?????????????????????????????????????????????????? | | ?????????????????????????????????????????????????? | | ?????????????????????????????????????????????????? | | ?????????????????????????????????????????????????? | | ?????????????????????????????????????????????????? | | ?????????????????????????????????????????????????? | | ?????????????????????????????????????????????????? | +----------------------------------------------------+ Best States ------------- Heat Dissipation 51 Energy Generation 15 Energy Capacity 250 Matter Stores 300 Matter Capacity 300 Sight Range 16 Robot Scan Range 14 Terrain Scan Range 14 Terrain Scan Density 85 Armor Coverage 225 Evasion (%) 45 Recoil Reduction 2 Defensive Hacking 10 Item Schematics ----------------- None Robot Schematics ------------------ None Fabricated ------------ Nothing Alien Tech Used ----------------- None Achievements -------------- Close Call Storm Trooper Challenges ------------ None Game ------ Seed LinearTachyonMonowheel Manual? 0 Play Time 00:32:06 Cumulative 11.3 hours Start 2024.06.05 @ 21:08:59 End 2024.06.05 @ 21:44:39 Sessions 1 Manual Loads 0 Difficulty Rogue Special Mode None Game No. 6 Rogue 1 Adventurer 5 Explorer 0 Win Type - Total 0 Types 0/0/0/0/0/0/0/0/0 Lore% 4 Gallery% 16 Achievement% 16 Wizard Run 0 Options --------- Layout 2 ASCII 0 Keyboard 1 Movement Arrows Keybinds 0 Fullscreen 1 Font 24/Terminus Map View 50x44 Zoom Use 0% Tactical HUD 0 Map Filters NONE Filters NONE Steam 1 RUN: 9f3e992a-ad73-423a-8bdc-7a66ac62150c